bitfinex/quotes_SOLUSD_20250518
["timestamp","ask_amount","ask_price","bid_price","bid_amount"]
[1747597260919,5.98014591,167.22,167.15,24.63213119]
[1747597261116,5.98014591,167.22,167.14,6.8516]
[1747597261319,39.49691672,167.21,167.14,6.8516]
[1747597261845,1.37949665,167.21,167.14,6.8516]
[1747597262542,39.49691672,167.21,167.14,6.8516]
[1747597262933,5.98229241,167.16,167.07,1.5061]
[1747597263126,5.98229241,167.16,167.08,18.64964886]
[1747597263127,1.37949665,167.15,167.08,18.64964886]
[1747597263315,5.98229241,167.16,167.08,18.64964886]
[1747597263721,1.37949665,167.15,167.07,1.5061]
[1747597263927,39.49691672,167.15,167.07,1.5061]
[1747597264131,1.37949665,167.15,167.07,1.5061]
[1747597264432,1.37949665,167.15,167.08,18.64964886]
[1747597264642,1.37949665,167.15,167.07,1.5061]
[1747597264954,1.37949665,167.15,167.08,18.64964886]
[1747597265117,1.37949665,167.17,167.08,18.64964886]
[1747597265457,1.37949665,167.17,167.08,44.64964886]
[1747597265665,38.11742007,167.19,167.08,44.64964886]
[1747597265825,38.11742007,167.25,167.15,26.0]
[1747597266163,1.37949665,167.24,167.16,7.8132]
[1747597266657,38.11742007,167.25,167.16,7.8132]
[1747597266943,5.97943075,167.24,167.17,5.98193455]
[1747597267152,1.37949665,167.29,167.18,18.64964886]
[1747597267526,7.35714026,167.29,167.18,18.64964886]
[1747597267921,38.11742007,167.26,167.18,18.64964886]
[1747597268352,7.35714026,167.29,167.18,18.64964886]
[1747597268522,38.11742007,167.28,167.18,18.64964886]
[1747597268722,38.11742007,167.28,167.18,44.64964886]
[1747597268924,38.11742007,167.28,167.2,18.64964886]
[1747597269138,5.97824236,167.28,167.2,18.64964886]
[1747597269348,44.09566243,167.28,167.2,18.64964886]
[1747597269549,38.11742007,167.26,167.16,73.0732]
[1747597269854,38.11742007,167.26,167.17,18.64964886]
[1747597270365,39.49691672,167.25,167.17,24.63158341]
[1747597270651,1.37949665,167.25,167.16,1.574]
[1747597270869,38.11742007,167.22,167.16,7.55606516]
[1747597271021,38.11742007,167.23,167.16,7.55606516]
[1747597271548,39.49691672,167.22,167.16,1.574]
[1747597271730,38.11742007,167.21,167.16,1.574]
[1747597272525,20.92679256,167.25,167.16,1.574]
[1747597272526,1.37949665,167.24,167.16,1.574]
[1747597272737,38.11742007,167.21,167.16,1.574]
[1747597273142,45.47777796,167.2,167.16,1.574]
[1747597273354,14.9476831,167.25,167.16,1.574]
[1747597273355,1.37949665,167.24,167.16,1.574]
[1747597273527,38.11742007,167.21,167.16,1.574]
[1747597273963,5.97978831,167.23,167.16,1.574]
[1747597274258,1.37949665,167.24,167.16,7.55624709]
[1747597274452,38.11742007,167.23,167.16,7.55624709]
[1747597275231,1.37949665,167.27,167.21,18.64964886]
[1747597275455,38.11742007,167.3,167.22,6.3511]
[1747597275628,39.49691672,167.29,167.23,18.64964886]
[1747597275830,38.11742007,167.3,167.23,18.64964886]
[1747597276035,1.37949665,167.32,167.23,18.64964886]
[1747597276258,1.37949665,167.32,167.25,18.64964886]
[1747597276630,1.37949665,167.34,167.25,18.64964886]
[1747597277246,39.49691672,167.37,167.27,24.6280072]
[1747597277551,39.49691672,167.37,167.27,39.57390305]
[1747597277757,7.35462235,167.37,167.27,18.64964886]
[1747597278128,38.11742007,167.33,167.27,18.64964886]
[1747597278355,7.35462235,167.37,167.27,18.64964886]
[1747597278585,38.11742007,167.35,167.27,18.64964886]
[1747597278929,1.37949665,167.34,167.26,5.97867284]
[1747597279142,7.35489993,167.36,167.28,5.97800095]
[1747597279348,38.11742007,167.35,167.28,5.97800095]
[1747597279855,1.37949665,167.35,167.27,24.62797486]
[1747597280025,1.37949665,167.37,167.28,18.64964886]
[1747597280457,39.49691672,167.37,167.27,5.978326]
[1747597280939,38.11742007,167.36,167.28,18.64964886]
[1747597281137,38.11742007,167.36,167.24,60.2333]
[1747597281138,38.11742007,167.31,167.24,1.5533]
[1747597281341,39.49691672,167.3,167.24,7.53268791]
[1747597281537,38.11742007,167.29,167.24,1.5533]
[1747597281751,1.37949665,167.28,167.24,1.5533]
[1747597282137,1.37949665,167.33,167.24,1.5533]
[1747597282337,38.11742007,167.31,167.24,1.5533]
[1747597282538,1.37949665,167.3,167.24,7.53266482]
[1747597282769,1.37949665,167.33,167.25,18.64964886]
[1747597282945,39.49691672,167.33,167.25,18.64964886]
[1747597283267,45.47319051,167.33,167.26,5.97871577]
[1747597285578,1.37949665,167.33,167.27,18.64964886]
[1747597285881,32.52,167.36,167.27,44.64964886]
[1747597286100,77.33357551,167.36,167.17,1.5067]
[1747597286240,1.37949665,167.35,167.17,1.5067]
[1747597286440,38.11742007,167.3,167.19,26.0]
[1747597286641,1.37949665,167.29,167.2,18.64964886]
[1747597286841,1.37949665,167.29,167.19,26.0]
[1747597287347,5.97800095,167.28,167.22,18.64964886]
[1747597287547,5.97800095,167.28,167.21,5.98050355]
[1747597287548,1.37949665,167.27,167.2,18.64964886]
[1747597288561,5.97773139,167.29,167.2,18.64964886]
[1747597288941,1.37949665,167.3,167.2,18.64964886]
[1747597289170,7.35618351,167.32,167.25,5.97907324]
[1747597289371,1.37949665,167.32,167.25,5.97907324]
[1747597289970,45.4735347,167.32,167.24,24.62900436]
[1747597290170,38.11742007,167.31,167.22,18.64964886]
[1747597290347,1.37949665,167.3,167.22,18.64964886]
[1747597290668,39.49691672,167.3,167.17,7.48832399]
[1747597290870,38.11742007,167.27,167.17,7.48832399]
[1747597291054,38.11742007,167.24,167.17,1.5067]
[1747597291257,1.37949665,167.23,167.17,1.5067]
[1747597291661,38.11742007,167.24,167.17,1.5067]
[1747597291864,1.37949665,167.23,167.17,1.5067]
[1747597292073,38.11742007,167.25,167.18,18.64964886]
[1747597292074,1.37949665,167.25,167.18,18.64964886]
[1747597292979,39.49691672,167.25,167.18,18.64964886]
[1747597293150,1.37949665,167.25,167.18,24.63088469]
[1747597293649,1.37949665,167.26,167.18,24.63088469]
[1747597294046,26.6395038,167.26,167.18,24.63088469]
[1747597294241,1.37949665,167.26,167.18,24.63088469]
[1747597294669,7.35829833,167.26,167.18,24.63088469]
[1747597294969,1.37949665,167.26,167.18,24.63088469]
[1747597295272,7.35827878,167.26,167.18,24.63088469]
[1747597295860,1.37949665,167.26,167.18,24.63088469]
[1747597296875,7.35826746,167.26,167.18,24.63088469]
[1747597297069,1.37949665,167.26,167.18,24.63088469]
[1747597297371,1.37949665,167.26,167.18,39.58482654]
[1747597297596,38.45755566,167.3,167.18,39.58482654]
[1747597297876,1.37949665,167.28,167.18,39.58482654]
[1747597298670,51.53691141,167.35,167.22,18.64964886]
[1747597298671,26.6395038,167.34,167.22,18.64964886]
[1747597298876,26.6395038,167.34,167.22,51.16964886]
[1747597299173,32.61536133,167.34,167.23,5.97978831]
[1747597299975,25.26000715,167.33,167.23,5.97978831]
[1747597300279,7.3560702,167.32,167.23,20.92925909]
[1747597301989,32.61607735,167.32,167.23,5.97978831]
[1747597302149,25.26000715,167.29,167.22,38.50008244]
[1747597302344,1.37949665,167.28,167.22,38.50008244]
[1747597302564,1.37949665,167.32,167.23,18.64964886]
[1747597302963,31.23596968,167.34,167.23,18.64964886]
[1747597302964,7.35545918,167.34,167.23,18.64964886]
[1747597303360,1.37949665,167.34,167.23,18.64964886]
[1747597303572,1.37949665,167.35,167.25,26.47994886]
[1747597303775,26.6395038,167.38,167.25,26.47994886]
[1747597304078,25.26000715,167.37,167.25,26.47994886]
[1747597304258,1.37949665,167.36,167.27,18.64964886]
[1747597305183,26.6395038,167.36,167.27,18.64964886]
[1747597305370,1.37949665,167.36,167.29,18.64964886]
[1747597306083,7.35475952,167.36,167.29,18.64964886]
[1747597306377,7.35475952,167.36,167.26,14.94678942]
[1747597306378,25.26000715,167.34,167.27,18.64964886]
[1747597306581,1.37949665,167.33,167.27,18.64964886]
[1747597306778,26.6395038,167.35,167.27,18.64964886]
[1747597307184,1.37949665,167.35,167.27,18.64964886]
[1747597307482,1.37949665,167.35,167.29,18.64964886]
[1747597307782,26.6395038,167.37,167.29,18.64964886]
[1747597307956,25.26000715,167.36,167.29,18.64964886]
[1747597308156,1.37949665,167.35,167.29,18.64964886]
[1747597308650,26.6395038,167.35,167.28,5.97800095]
[1747597308856,1.37949665,167.35,167.28,5.97800095]
[1747597309881,1.37949665,167.35,167.26,39.57515405]
[1747597310580,7.35507615,167.35,167.26,39.57515405]
[1747597310770,1.37949665,167.35,167.26,39.57515405]
[1747597310970,1.37949665,167.38,167.28,18.64964886]
[1747597311882,1.37949665,167.41,167.3,44.64964886]
[1747597312580,3.30572952,167.42,167.34,18.64964886]
[1747597312783,3.30572952,167.42,167.34,24.97244886]
[1747597313683,3.30572952,167.42,167.34,57.29244886]
[1747597313869,1.37949665,167.45,167.36,18.64964886]
[1747597314566,7.35156424,167.45,167.36,18.64964886]
[1747597314879,25.26000715,167.44,167.36,18.64964886]
[1747597315085,1.37949665,167.43,167.36,18.64964886]
[1747597315866,1.37949665,167.43,167.37,5.9747864]
[1747597316675,25.26000715,167.44,167.37,5.9747864]
[1747597316876,7.35225801,167.43,167.37,5.9747864]
[1747597317186,7.35225801,167.43,167.36,24.62470046]
[1747597317590,1.37949665,167.43,167.36,24.62470046]
[1747597317895,32.61222098,167.43,167.34,6.3228]
[1747597318092,32.61222098,167.43,167.34,24.97244886]
[1747597318671,7.35221383,167.43,167.34,24.97244886]
[1747597318887,137.37662314,167.44,167.35,18.64964886]
[1747597319201,137.37662314,167.44,167.36,5.9751434]
[1747597319987,137.37662314,167.44,167.37,18.64964886]
[1747597320288,137.37662314,167.44,167.36,5.9751434]
[1747597320289,143.34903469,167.44,167.36,5.9751434]
[1747597320497,137.37662314,167.44,167.36,5.9751434]
[1747597320780,1.37949665,167.43,167.35,18.64964886]
[1747597320996,168.60900035,167.44,167.35,24.62509692]
[1747597321525,137.37662314,167.44,167.35,24.62509692]
[1747597321997,137.37662314,167.44,167.35,39.56384804]
[1747597322713,137.37662314,167.44,167.37,18.64964886]
[1747597323507,137.37662314,167.44,167.4,1.6569]
[1747597323712,5.97075729,167.49,167.41,18.64964886]
[1747597323893,1.37949665,167.49,167.41,18.64964886]
[1747597324309,137.37662314,167.5,167.41,18.64964886]
[1747597324817,37.70392822,167.53,167.43,18.64964886]
[1747597325019,1.37949665,167.52,167.43,18.64964886]
[1747597325311,1.37949665,167.52,167.44,5.97228858]
[1747597325515,1.37949665,167.52,167.45,18.64964886]
[1747597325702,7.34909094,167.52,167.45,18.64964886]
[1747597326111,1.37949665,167.52,167.45,18.64964886]
[1747597326305,7.34900918,167.52,167.45,18.64964886]
[1747597326513,1.37949665,167.52,167.45,18.64964886]
[1747597326722,32.60865211,167.53,167.45,18.64964886]
[1747597327229,25.26000715,167.51,167.44,18.64964886]
[1747597327518,6.0473,167.61,167.48,18.64964886]
[1747597327715,25.26000715,167.57,167.48,18.64964886]
[1747597327920,1.37949665,167.56,167.48,18.64964886]
[1747597328510,5.96836765,167.55,167.48,24.6205019]
[1747597328715,1.37949665,167.54,167.48,18.64964886]
[1747597329020,25.26000715,167.52,167.46,18.64964886]
[1747597329318,26.6395038,167.51,167.45,18.64964886]
[1747597329622,1.37949665,167.51,167.45,18.64964886]
[1747597330202,5.96908016,167.53,167.46,5.9715753]
[1747597330523,26.6395038,167.52,167.45,24.62151191]
[1747597330820,26.6395038,167.52,167.45,18.64964886]
[1747597331018,26.6395038,167.52,167.44,5.97220227]
[1747597331019,25.26000715,167.51,167.43,12.41614816]
[1747597331203,1.37949665,167.5,167.44,18.64964886]
[1747597331524,1.37949665,167.51,167.44,18.64964886]
[1747597332404,32.6094652,167.51,167.44,24.62162118]
[1747597332922,32.6094652,167.51,167.44,18.64964886]
[1747597333418,32.6094652,167.51,167.44,24.62186606]
[1747597333821,25.26000715,167.49,167.42,5.97289733]
[1747597334025,25.26000715,167.49,167.43,18.64964886]
[1747597334322,5.9705057,167.49,167.43,18.64964886]
[1747597334633,32.6100095,167.49,167.43,18.64964886]
[1747597334828,7.35000235,167.49,167.43,18.64964886]
[1747597335132,25.26000715,167.48,167.42,18.64964886]
[1747597335623,25.26000715,167.43,167.36,1.5852]
[1747597335807,25.26000715,167.42,167.37,18.64964886]
[1747597336135,1.37949665,167.47,167.37,18.64964886]
[1747597336337,26.6395038,167.47,167.37,44.64964886]
[1747597336639,31.23058022,167.49,167.39,18.64964886]
[1747597337144,25.26000715,167.48,167.39,18.64964886]
[1747597337346,26.6395038,167.48,167.39,18.64964886]
[1747597337633,25.26000715,167.46,167.39,18.64964886]
[1747597337834,1.37949665,167.48,167.39,18.64964886]
[1747597338002,25.26000715,167.48,167.39,18.64964886]
[1747597338523,31.23102993,167.48,167.4,5.97371565]
[1747597338837,31.23102993,167.48,167.41,18.64964886]
[1747597339122,25.26000715,167.48,167.41,18.64964886]
[1747597339821,26.6395038,167.48,167.41,18.64964886]
[1747597340429,31.23122587,167.47,167.41,18.64964886]
[1747597340598,25.26000715,167.46,167.38,5.97408602]
[1747597340804,25.26000715,167.46,167.39,18.64964886]
[1747597340805,25.26000715,167.45,167.39,18.64964886]
[1747597341018,25.26000715,167.43,167.36,7.56000483]
[1747597341220,25.26000715,167.38,167.24,1.6304]
[1747597341413,25.26000715,167.35,167.25,5.97907324]
[1747597341611,25.26000715,167.32,167.25,5.97907324]
[1747597341910,25.26000715,167.33,167.26,18.64964886]
[1747597342222,1.37949665,167.32,167.25,5.97907324]
[1747597342841,1.37949665,167.32,167.26,18.64964886]
[1747597343237,26.6395038,167.36,167.26,18.64964886]
[1747597343438,1.37949665,167.36,167.26,18.64964886]
[1747597343942,26.6395038,167.36,167.26,18.64964886]
[1747597344516,1.37949665,167.36,167.26,18.64964886]
[1747597344820,1.37949665,167.36,167.28,18.64964886]
[1747597345348,7.35477503,167.36,167.28,18.64964886]
[1747597345529,7.3542993,167.37,167.28,18.64964886]
[1747597345720,32.61430645,167.37,167.28,18.64964886]
[1747597347041,32.61430645,167.37,167.3,18.64964886]
[1747597347825,7.3542993,167.37,167.31,5.97692905]
[1747597348018,7.3542993,167.37,167.3,18.64964886]
[1747597349238,32.61430645,167.37,167.3,5.97721532]
[1747597349541,7.3542993,167.37,167.28,24.62758621]
[1747597349843,25.26000715,167.36,167.28,24.62758621]
[1747597350448,31.23527034,167.36,167.28,24.62758621]
[1747597351156,25.26000715,167.33,167.25,32.02]
[1747597351448,25.26000715,167.31,167.24,1.6304]
[1747597351630,26.6395038,167.3,167.24,7.6097513]
[1747597351819,1.37949665,167.3,167.24,7.6097513]
[1747597352019,25.26000715,167.31,167.24,7.6097513]
[1747597352441,1.37949665,167.3,167.24,7.6097513]
[1747597352917,26.6395038,167.34,167.25,18.64964886]
[1747597353747,143.35221751,167.35,167.25,18.64964886]
[1747597354241,137.37662314,167.35,167.25,18.64964886]
[1747597354443,137.37662314,167.35,167.25,44.64964886]
[1747597354652,137.37662314,167.35,167.27,18.64964886]
[1747597356055,137.37662314,167.35,167.29,18.64964886]
[1747597356234,5.9748777,167.37,167.29,18.64964886]
[1747597356554,1.37949665,167.37,167.29,18.64964886]
[1747597357054,7.3540179,167.38,167.29,18.64964886]
[1747597357350,32.6136595,167.39,167.29,18.64964886]
[1747597357968,32.6136595,167.39,167.3,5.97728631]
[1747597358346,137.37662314,167.41,167.31,18.64964886]
[1747597358561,137.37662314,167.41,167.31,25.03584886]
[1747597358761,137.37662314,167.41,167.33,18.64964886]
[1747597359446,143.35013564,167.41,167.33,18.64964886]
[1747597359755,137.37662314,167.41,167.33,18.64964886]
[1747597360268,143.35022059,167.41,167.35,18.64964886]
[1747597362639,25.26000715,167.39,167.32,1.5049]
[1747597362842,25.26000715,167.37,167.32,1.5049]
[1747597363681,138.75611979,167.4,167.29,18.64964886]
[1747597363834,25.26000715,167.34,167.29,18.64964886]
[1747597364159,25.26000715,167.37,167.29,18.64964886]
[1747597364549,26.6395038,167.36,167.29,18.64964886]
[1747597364750,5.97550044,167.35,167.29,24.62717001]
[1747597366956,25.26000715,167.37,167.29,24.62717001]
[1747597368068,1.37949665,167.38,167.29,24.62717001]
[1747597368264,5.97407252,167.39,167.29,24.62717001]
[1747597369467,7.35356917,167.39,167.29,24.62717001]
[1747597369851,7.35356917,167.39,167.29,39.57127904]
[1747597370573,5.97407252,167.39,167.29,39.57127904]
[1747597371661,143.350424,167.4,167.29,39.57127904]
[1747597372666,137.37662314,167.4,167.33,18.64964886]
[1747597373478,11.97305834,167.45,167.33,18.64964886]
[1747597373653,5.97195834,167.45,167.35,18.64964886]
[1747597373971,7.35145499,167.45,167.35,18.64964886]
[1747597374863,7.35145499,167.45,167.37,18.64964886]
[1747597375475,32.61146214,167.45,167.37,18.64964886]
[1747597375845,32.61146214,167.45,167.39,18.64964886]
[1747597376078,7.35145499,167.45,167.39,18.64964886]
[1747597376958,7.35145499,167.45,167.39,5.97407112]
[1747597377265,32.61146214,167.45,167.39,18.64964886]
[1747597378070,7.35145499,167.45,167.39,18.64964886]
[1747597378376,1.37949665,167.45,167.39,18.64964886]
[1747597378748,137.37662314,167.46,167.39,18.64964886]
[1747597379070,5.97096351,167.48,167.41,18.64964886]
[1747597379376,25.26000715,167.42,167.35,18.64964886]
[1747597379555,25.26000715,167.4,167.35,18.64964886]
[1747597380381,25.26000715,167.4,167.35,24.6251493]
[1747597380584,25.26000715,167.41,167.35,24.6251493]
[1747597380786,5.97331384,167.42,167.35,24.6251493]
[1747597381090,25.26000715,167.41,167.35,24.6251493]
[1747597381263,5.97193191,167.45,167.35,24.6251493]
[1747597381456,7.35142856,167.45,167.35,24.6251493]
[1747597381775,25.26000715,167.44,167.35,24.6251493]
[1747597382382,7.35142856,167.45,167.35,24.6251493]
[1747597382561,25.26000715,167.43,167.35,24.6251493]
[1747597382961,25.26000715,167.44,167.35,24.6251493]
[1747597383160,57.64,167.5,167.35,24.6251493]
[1747597383161,7.76524076,167.7,167.48,1.5263]
[1747597383361,17.95293235,167.71,167.53,18.64964886]
[1747597383362,8.2774786,167.63,167.53,18.64964886]
[1747597383584,8.2774786,167.63,167.55,18.64964886]
[1747597383952,8.2774786,167.63,167.57,18.64964886]
[1747597384252,8.2774786,167.63,167.59,18.64964886]
[1747597384453,8.2774786,167.63,167.61,18.64964886]
[1747597385293,8.98943268,167.67,167.63,18.64964886]
[1747597386453,13.79579766,167.72,167.62,1.19287765]
[1747597386653,39.05580481,167.72,167.61,24.61580708]
[1747597386857,25.26000715,167.72,167.61,24.61580708]
[1747597387046,31.22257737,167.72,167.61,24.61580708]
[1747597387249,25.26000715,167.74,167.61,24.61580708]
[1747597388255,31.22196982,167.73,167.61,24.61580708]
[1747597388682,5.96196267,167.73,167.61,24.61580708]
[1747597389387,5.96196267,167.73,167.61,25.80860771]
[1747597390473,5.9615994,167.75,167.61,66.72418553]
[1747597390774,25.26000715,167.74,167.61,66.72418553]
[1747597390957,5.9615994,167.75,167.61,66.72418553]
[1747597391370,31.22160655,167.75,167.61,66.72418553]
[1747597391575,5.9615994,167.75,167.61,66.72418553]
[1747597392456,5.9615994,167.75,167.63,24.61516815]
[1747597392867,5.9615994,167.75,167.63,40.72162072]
[1747597393374,6.2552,167.94,167.7,1.5263]
[1747597393589,25.26000715,167.85,167.7,7.96311083]
[1747597393883,25.26000715,167.85,167.74,18.64964886]
[1747597394084,25.26000715,167.86,167.74,18.64964886]
[1747597394381,5.95663569,167.88,167.77,5.96054121]
[1747597394561,5.95663569,167.88,167.78,18.64964886]
[1747597394760,31.44,167.92,167.8,18.64964886]
[1747597394974,56.70000715,167.92,167.8,20.26524886]
[1747597395183,5.95521676,167.92,167.8,20.26524886]
[1747597395560,25.26000715,167.97,167.82,18.64964886]
[1747597395879,51.26000715,167.97,167.82,18.64964886]
[1747597396060,14.88206619,167.99,167.82,18.64964886]
[1747597396061,25.26000715,167.96,167.82,18.64964886]
[1747597396466,31.21416017,167.95,167.84,18.64964886]
[1747597396683,25.26000715,167.94,167.81,1.19137823]
[1747597396887,25.26000715,167.94,167.82,18.64964886]
[1747597397196,25.26000715,167.94,167.83,31.66]
[1747597397686,38.0158704,167.94,167.83,31.66]
[1747597398075,38.0158704,167.93,167.83,31.66]
[1747597398282,38.0158704,167.93,167.83,37.61839509]
[1747597398956,38.0158704,167.92,167.83,31.66]
[1747597399192,38.0158704,167.9,167.83,31.66]
[1747597399409,38.0158704,167.86,167.73,14.9047438]
[1747597399684,26.0,167.91,167.77,31.66]
[1747597399685,5.95805529,167.84,167.77,31.66]
[1747597399900,43.97392569,167.84,167.76,1.645]
[1747597400069,43.97392569,167.84,167.77,18.64964886]
[1747597400394,38.0158704,167.83,167.76,1.645]
[1747597400599,38.0158704,167.81,167.76,1.645]
[1747597400888,38.0158704,167.82,167.76,1.645]
[1747597401586,38.0158704,167.83,167.76,1.645]
[1747597401788,14.89278648,167.87,167.77,18.64964886]
[1747597401988,38.0158704,167.84,167.76,1.645]
[1747597402193,38.0158704,167.81,167.75,31.66]
[1747597402373,38.0158704,167.8,167.73,18.64964886]
[1747597403792,5.96018595,167.78,167.73,18.64964886]
[1747597404193,5.96018595,167.78,167.72,18.64964886]
[1747597404375,43.97605635,167.78,167.72,18.64964886]
[1747597404569,38.0158704,167.75,167.67,18.64964886]
[1747597404895,38.0158704,167.75,167.66,38.85195186]
[1747597405097,137.37662314,167.77,167.66,38.85195186]
[1747597405277,137.37662314,167.77,167.67,18.64964886]
[1747597405594,175.39249354,167.77,167.67,18.64964886]
[1747597405801,38.0158704,167.76,167.67,18.64964886]
[1747597406098,43.97676691,167.76,167.68,5.96374045]
[1747597406296,143.33718247,167.77,167.69,18.64964886]
[1747597407298,137.37662314,167.77,167.69,18.64964886]
[1747597407996,143.33727723,167.77,167.71,18.64964886]
[1747597408889,137.37662314,167.77,167.71,18.64964886]
[1747597409093,143.52062314,167.88,167.75,18.64964886]
[1747597409282,38.0158704,167.83,167.75,18.64964886]
[1747597409475,174.76062314,167.88,167.75,18.64964886]
[1747597409793,38.0158704,167.82,167.75,18.64964886]
[1747597409979,38.0158704,167.83,167.75,18.64964886]
[1747597410176,5.95876534,167.82,167.75,24.61072605]
[1747597410376,5.95876534,167.82,167.75,18.64964886]
[1747597410584,38.0158704,167.81,167.68,18.64964886]
[1747597410897,38.0158704,167.81,167.71,44.64964886]
[1747597411816,50.63472044,167.87,167.73,18.64964886]
[1747597412104,20.84946684,167.87,167.73,18.64964886]
[1747597412400,38.0158704,167.83,167.73,18.64964886]
[1747597412697,38.0158704,167.82,167.73,18.64964886]
[1747597413299,5.95912043,167.81,167.74,5.96160724]
[1747597414699,5.95912043,167.81,167.73,26.0]
[1747597414895,38.0158704,167.8,167.73,18.64964886]
[1747597415289,38.0158704,167.77,167.67,37.26409614]
[1747597415605,38.0158704,167.75,167.7,18.64964886]
[1747597415898,137.37662314,167.79,167.7,18.64964886]
[1747597415899,38.0158704,167.76,167.7,18.64964886]
[1747597416600,38.0158704,167.77,167.7,18.64964886]
[1747597416798,137.37662314,167.79,167.71,5.96267366]
[1747597417007,37.11956896,167.8,167.72,18.64964886]
[1747597417500,75.13543936,167.8,167.72,18.64964886]
[1747597417811,38.0158704,167.79,167.72,18.64964886]
[1747597418097,31.16,167.8,167.72,5.96214415]
[1747597418308,69.1758704,167.8,167.72,5.96214415]
[1747597418678,38.0158704,167.79,167.72,5.96214415]
[1747597418977,38.0158704,167.78,167.7,18.64964886]
[1747597419192,75.13538073,167.8,167.7,24.61258985]
[1747597419503,37.11951033,167.8,167.7,24.61258985]
[1747597420391,174.49613347,167.8,167.7,24.61258985]
[1747597420805,174.49613347,167.8,167.7,39.52016289]
[1747597421183,137.37662314,167.8,167.74,18.64964886]
[1747597422382,143.3362192,167.8,167.74,18.64964886]
[1747597423598,137.37662314,167.8,167.74,24.61115722]
[1747597423789,143.3362229,167.8,167.74,24.61115722]
[1747597424614,137.37662314,167.8,167.74,24.61115722]
[1747597424896,143.33470443,167.84,167.74,24.61115722]
[1747597425099,143.33470443,167.84,167.77,18.64964886]
[1747597425697,5.95808129,167.84,167.77,18.64964886]
[1747597426293,5.95808129,167.84,167.78,5.96018595]
[1747597426699,31.05967123,167.87,167.79,18.64964886]
[1747597426893,25.10268071,167.85,167.79,18.64964886]
[1747597427198,5.95699052,167.87,167.79,18.64964886]
[1747597427405,25.10268071,167.85,167.79,18.64964886]
[1747597427786,5.95805529,167.84,167.79,18.64964886]
[1747597429013,25.10268071,167.86,167.79,5.95964896]
[1747597429416,5.95699052,167.87,167.79,5.95964896]
[1747597429586,25.10268071,167.86,167.79,5.95964896]
[1747597429787,5.95770032,167.85,167.79,18.64964886]
[1747597430806,31.05967123,167.87,167.79,5.95969283]
[1747597431384,25.10268071,167.86,167.77,18.64964886]
[1747597431602,25.10268071,167.85,167.77,24.60984889]
[1747597431782,20.84946684,167.87,167.77,24.60984889]
[1747597431783,31.05967123,167.87,167.77,24.60984889]
[1747597432609,25.10268071,167.85,167.77,24.60984889]
[1747597433113,5.95805529,167.84,167.77,24.60984889]
[1747597434015,5.95805529,167.84,167.77,18.64964886]
[1747597434316,31.060736,167.84,167.77,18.64964886]
[1747597434494,5.95805529,167.84,167.77,24.61006214]
[1747597434695,25.10268071,167.82,167.69,237.90797685]
[1747597434908,25.10268071,167.79,167.7,32.5352]
[1747597435227,25.10268071,167.79,167.71,44.64964886]
[1747597435394,25.10268071,167.8,167.71,44.64964886]
[1747597435588,25.10268071,167.8,167.71,18.64964886]
[1747597435913,25.10268071,167.82,167.71,44.64964886]
[1747597436116,5.95912043,167.81,167.72,5.96231814]
[1747597436413,31.06180114,167.81,167.72,5.96231814]
[1747597436597,25.10268071,167.79,167.72,18.64964886]
[1747597436998,25.10268071,167.8,167.72,18.64964886]
[1747597437397,5.95912043,167.81,167.72,18.64964886]
[1747597438227,31.06180114,167.81,167.72,18.64964886]
[1747597438391,25.10268071,167.76,167.71,18.64964886]
[1747597438596,25.10268071,167.78,167.71,18.64964886]
[1747597439522,5.96054121,167.77,167.71,18.64964886]
[1747597439724,31.06322192,167.77,167.71,18.64964886]
[1747597440596,25.10268071,167.76,167.7,32.5352]
[1747597440797,5.96054121,167.77,167.7,30.94]
[1747597441000,25.10268071,167.76,167.7,30.94]
[1747597441200,25.10268071,167.76,167.69,18.64964886]
[1747597441610,5.96125186,167.75,167.69,18.64964886]
[1747597441805,31.36388071,167.78,167.69,24.61293673]
[1747597442009,25.10268071,167.77,167.69,24.61293673]
[1747597442829,31.0632629,167.77,167.69,24.61293673]
[1747597442998,162.47930385,167.79,167.69,24.61293673]
[1747597443197,25.10268071,167.78,167.69,24.61293673]
[1747597443593,31.06297093,167.78,167.69,24.61293673]
[1747597443842,25.10268071,167.77,167.69,24.61293673]
[1747597444118,5.96029022,167.78,167.69,18.64964886]
[1747597444119,25.10268071,167.76,167.69,18.64964886]
[1747597444328,162.47930385,167.77,167.69,18.64964886]
[1747597445009,168.44012078,167.77,167.69,24.61298352]
[1747597445210,168.44012078,167.77,167.69,18.64964886]
[1747597445398,25.10268071,167.76,167.67,18.64964886]
[1747597445597,25.10268071,167.75,167.67,18.64964886]
[1747597445822,25.10268071,167.73,167.66,1.6652]
[1747597446316,162.47930385,167.74,167.66,7.62956464]
[1747597446619,137.37662314,167.74,167.66,7.62956464]
[1747597446799,137.37662314,167.74,167.67,18.64964886]
[1747597447127,137.37662314,167.74,167.69,18.64964886]
[1747597447623,5.9606543,167.77,167.69,18.64964886]
[1747597448903,5.96018595,167.78,167.71,18.64964886]
[1747597451730,5.96018595,167.78,167.71,5.9626455]
[1747597452504,31.06286666,167.78,167.71,5.9626455]